[Event "CCC-GM 2022"]
[Site "Ballerup"]
[Date "2022.05.29"]
[Round "9.5"]
[White "Brondt, Nicolai Kvist"]
[Black "Komarov, Dimitri"]
[Result "1/2-1/2"]
[ECO "E15"]
[WhiteElo "2241"]
[BlackElo "2493"]
[Annotator "TA"]
[PlyCount "61"]
[EventDate "2022.05.25"]
[EventType "tourn"]
[EventCountry "DEN"]
[SourceTitle "playchess.com"]
[Source "ChessBase"]
[SourceQuality "1"]
[TimeControl "5400+30"]

{[%evp 18,61,40,25,23,13,28,12,19,16,37,33,31,19,27,19,24,29,23,19,16,17,18,16,24,22,25,18,18,1,19,0,0,0,0,0,0,0,0,0,0,0,0,0,0,0]} 1. d4 {[%emt 0:00:02]} Nf6 {[%emt 0:00:05]} 2. c4 {[%emt 0:00:06]} e6 {[%emt 0:00:03]} 3. Nf3 {[%emt 0:00:03]} b6 {[%emt 0:00:07]} 4. g3 {[%emt 0:00:02]} Ba6 {[%emt 0:00:18]} 5. b3 {[%emt 0:00:06]} Bb4+ {[%emt 0:00:30]} 6. Bd2 {[%emt 0:00:15]} Be7 {[%emt 0:00:07]} 7. Nc3 {[%emt 0:01:20]} Bb7 {[%emt 0:01:17]} 8. Bg2 {[%emt 0:00:30]} O-O {[%emt 0:00:31]} 9. O-O {[%emt 0:01:06]} Na6 {[%emt 0:02:51] was the old line (9...d5).} 10. Qc2 {[%emt 0:06:35]} d5 {[%emt 0:01:23] E15: Queen's Indian: 4 g3 sidelines, 4 g3 Ba6 and 4 g3 Bb7 early deviations.} 11. cxd5 {[%emt 0:01:10]} Nb4 {[%emt 0:00:38]} 12. Qb2 {[%emt 0:01:27] Black should prevent dxe6.} Nbxd5 {[%emt 0:01:38]} 13. Rfd1 {[%emt 0:03:50] [#]} Nxc3 $146 {[%emt 0:07:51]} ({Predecessor:} 13... Rc8 14. Rac1 c5 15. Nxd5 Bxd5 16. dxc5 Bxc5 17. b4 Be7 18. Bc3 Qe8 19. a3 Qa4 {0-1 (52) Polgar,Z (2560)-Karpov,A (2725) Monte Carlo 1993}) 14. Bxc3 {[%emt 0:00:11]} a5 {[%emt 0:00:44]} 15. Ne5 {[%emt 0:07:21]} Bxg2 {[%emt 0:00:17]} 16. Kxg2 {[%emt 0:00:03]} Qd5+ {[%emt 0:03:02]} 17. f3 {[%emt 0:01:54]} a4 {[%emt 0:00:50]} 18. Qc2 {[%emt 0:09:00]} axb3 {[%emt 0:07:51]} 19. axb3 {[%emt 0:00:41]} Qb7 {[%emt 0:09:34]} 20. e4 {[%emt 0:02:46][%cal Be2e4,Be4e5][%mdl 32]} Rxa1 {[%emt 0:01:12]} 21. Bxa1 {[%emt 0:00:35]} c5 {[%emt 0:00:25]} 22. dxc5 {[%emt 0:12:33]} bxc5 {[%emt 0:05:26] The position is equal.} 23. Nc4 {[%emt 0:08:48]} h6 {[%emt 0:10:19]} 24. Bxf6 {[%emt 0:03:50]} Bxf6 {[%emt 0:00:17]} 25. e5 {[%emt 0:00:11]} Be7 {[%emt 0:01:29]} 26. Rd3 {[%emt 0:06:58]} Rd8 {[%emt 0:02:53]} 27. Rxd8+ {[%emt 0:02:09]} Bxd8 {[%emt 0:00:05]} 28. Qd3 {[%emt 0:01:23]} Bc7 {[%emt 0:07:25]} 29. Kf2 {[%emt 0:05:24]} Qa6 {[%emt 0:02:42]} 30. Qb1 {[%emt 0:01:37] Against Qa2+} Kf8 {[%emt 0:05:31]} 31. Ke3 {[%emt 0:03:43] Weighted Error Value: White=0.04 (flawless) /Black=0.03 (flawless)} 1/2-1/2